[Event "Titled Tuesday Blitz May 03 Late 2022"]
[White "Petrova, Irina"]
[Black "Donchenko, Anatoly"]
[WhiteFideId "14124122"]
[BlackFideId "4106091"]
[WhiteElo "1993"]
[BlackElo "2339"]
[Result "1/2-1/2"]
[Round "07"]
[TimeControl "180+1"]
[Date "2022.05.03"]
[WhiteClock "0:00:20"]
[BlackClock "0:00:28"]

1. e4 {[%clk 0:03:00]}  Nf6 {[%clk 0:02:56]} 2. e5 {[%clk 0:03:00]}  Nd5 {[%clk 0:02:56]} 3. d4 {[%clk 0:03:01]}  d6 {[%clk 0:02:56]} 4. c4 {[%clk 0:03:02]}  Nb6 {[%clk 0:02:55]} 5. exd6 {[%clk 0:03:02]}  exd6 {[%clk 0:02:54]} 6. Nc3 {[%clk 0:03:03]}  Nc6 {[%clk 0:02:54]} 7. h3 {[%clk 0:03:00]}  Be7 {[%clk 0:02:53]} 8. Nf3 {[%clk 0:03:00]}  Bf5 {[%clk 0:02:52]} 9. Be2 {[%clk 0:03:00]}  O-O {[%clk 0:02:52]} 10. O-O {[%clk 0:02:55]}  h6 {[%clk 0:02:51]} 11. b3 {[%clk 0:02:55]}  Re8 {[%clk 0:02:51]} 12. Be3 {[%clk 0:02:55]}  d5 {[%clk 0:02:51]} 13. c5 {[%clk 0:02:55]}  Nc8 {[%clk 0:02:49]} 14. a3 {[%clk 0:02:51]}  a5 {[%clk 0:02:48]} 15. Bd3 {[%clk 0:02:33]}  Bxd3 {[%clk 0:02:44]} 16. Qxd3 {[%clk 0:02:34]}  Bf6 {[%clk 0:02:43]} 17. Rfe1 {[%clk 0:02:27]}  N8e7 {[%clk 0:02:40]} 18. Rad1 {[%clk 0:02:26]}  Qd7 {[%clk 0:02:40]} 19. Bf4 {[%clk 0:02:25]}  Nf5 {[%clk 0:02:35]} 20. Nb5 {[%clk 0:02:18]}  Rxe1+ {[%clk 0:02:31]} 21. Rxe1 {[%clk 0:02:17]}  Bd8 {[%clk 0:02:20]} 22. g4 {[%clk 0:02:03]}  Nfe7 {[%clk 0:02:19]} 23. Re3 {[%clk 0:01:53]}  Ng6 {[%clk 0:02:18]} 24. Bg3 {[%clk 0:01:52]}  Na7 {[%clk 0:02:16]} 25. Nxa7 {[%clk 0:01:50]}  Rxa7 {[%clk 0:02:15]} 26. Qe2 {[%clk 0:01:49]}  Kf8 {[%clk 0:02:11]} 27. Ne5 {[%clk 0:01:48]}  Nxe5 {[%clk 0:02:08]} 28. Bxe5 {[%clk 0:01:41]}  Ra8 {[%clk 0:02:06]} 29. Bg3 {[%clk 0:01:36]}  Bf6 {[%clk 0:02:04]} 30. Be5 {[%clk 0:01:34]}  Bd8 {[%clk 0:02:00]} 31. Bg3 {[%clk 0:01:30]}  Bg5 {[%clk 0:01:56]} 32. f4 {[%clk 0:01:25]}  Bf6 {[%clk 0:01:55]} 33. Qd3 {[%clk 0:01:25]}  Re8 {[%clk 0:01:52]} 34. f5 {[%clk 0:01:22]}  c6 {[%clk 0:01:49]} 35. Bf4 {[%clk 0:01:17]}  Bd8 {[%clk 0:01:38]} 36. Rxe8+ {[%clk 0:01:14]}  Qxe8 {[%clk 0:01:34]} 37. Qe3 {[%clk 0:01:14]}  Qxe3+ {[%clk 0:01:33]} 38. Bxe3 {[%clk 0:01:15]}  Bc7 {[%clk 0:01:17]} 39. Kf2 {[%clk 0:01:15]}  Kg8 {[%clk 0:01:17]} 40. Ke2 {[%clk 0:01:15]}  Kh7 {[%clk 0:01:17]} 41. Kd3 {[%clk 0:01:13]}  g6 {[%clk 0:01:17]} 42. fxg6+ {[%clk 0:01:13]}  Kxg6 {[%clk 0:01:13]} 43. b4 {[%clk 0:01:12]}  axb4 {[%clk 0:01:10]} 44. axb4 {[%clk 0:01:13]}  h5 {[%clk 0:01:09]} 45. Ke2 {[%clk 0:01:10]}  hxg4 {[%clk 0:01:08]} 46. hxg4 {[%clk 0:01:11]}  f5 {[%clk 0:01:08]} 47. gxf5+ {[%clk 0:01:11]}  Kxf5 {[%clk 0:01:08]} 48. Kd3 {[%clk 0:01:11]}  Kg4 {[%clk 0:01:06]} 49. Bg1 {[%clk 0:01:10]}  Kf3 {[%clk 0:01:06]} 50. Be3 {[%clk 0:01:09]}  Bh2 {[%clk 0:01:04]} 51. Bh6 {[%clk 0:01:04]}  Bf4 {[%clk 0:01:03]} 52. Bg7 {[%clk 0:01:03]}  Bc1 {[%clk 0:01:01]} 53. Kc2 {[%clk 0:00:57]}  Bf4 {[%clk 0:00:59]} 54. Kd3 {[%clk 0:00:57]}  Kf2 {[%clk 0:00:58]} 55. Bf6 {[%clk 0:00:55]}  Ke1 {[%clk 0:00:56]} 56. Bg7 {[%clk 0:00:54]}  Kd1 {[%clk 0:00:55]} 57. Bf6 {[%clk 0:00:52]}  Kc1 {[%clk 0:00:54]} 58. Kc3 {[%clk 0:00:50]}  Bd2+ {[%clk 0:00:51]} 59. Kb3 {[%clk 0:00:50]}  Be3 {[%clk 0:00:49]} 60. Kc3 {[%clk 0:00:50]}  Kb1 {[%clk 0:00:48]} 61. Kb3 {[%clk 0:00:49]}  Bf2 {[%clk 0:00:45]} 62. b5 {[%clk 0:00:48]}  Kc1 {[%clk 0:00:41]} 63. bxc6 {[%clk 0:00:47]}  bxc6 {[%clk 0:00:39]} 64. Kc3 {[%clk 0:00:45]}  Kd1 {[%clk 0:00:37]} 65. Kd3 {[%clk 0:00:45]}  Ke1 {[%clk 0:00:35]} 66. Be5 {[%clk 0:00:45]}  Bh4 {[%clk 0:00:34]} 67. Ke3 {[%clk 0:00:33]}  Bg5+ {[%clk 0:00:33]} 68. Kd3 {[%clk 0:00:33]}  Kf2 {[%clk 0:00:33]} 69. Bg7 {[%clk 0:00:32]}  Kf3 {[%clk 0:00:33]} 70. Bh8 {[%clk 0:00:32]}  Be7 {[%clk 0:00:33]} 71. Bg7 {[%clk 0:00:32]}  Kf4 {[%clk 0:00:33]} 72. Be5+ {[%clk 0:00:32]}  Kf5 {[%clk 0:00:33]} 73. Bg3 {[%clk 0:00:30]}  Bf6 {[%clk 0:00:32]} 74. Bf2 {[%clk 0:00:29]}  Kf4 {[%clk 0:00:32]} 75. Be3+ {[%clk 0:00:29]}  Kf3 {[%clk 0:00:32]} 76. Bg1 {[%clk 0:00:29]}  Kg2 {[%clk 0:00:32]} 77. Be3 {[%clk 0:00:29]}  Kf3 {[%clk 0:00:32]} 78. Bg1 {[%clk 0:00:29]}  Bh4 {[%clk 0:00:32]} 79. Be3 {[%clk 0:00:28]}  Bf2 {[%clk 0:00:31]} 80. Bg5 {[%clk 0:00:28]}  Bg3 {[%clk 0:00:31]} 81. Bf6 {[%clk 0:00:27]}  Kg4 {[%clk 0:00:31]} 82. Bg7 {[%clk 0:00:27]}  Kf5 {[%clk 0:00:31]} 83. Bf8 {[%clk 0:00:27]}  Bf4 {[%clk 0:00:31]} 84. Be7 {[%clk 0:00:26]}  Bg3 {[%clk 0:00:31]} 85. Bd8 {[%clk 0:00:25]}  Bb8 {[%clk 0:00:30]} 86. Ba5 {[%clk 0:00:25]}  Ke6 {[%clk 0:00:30]} 87. Bd2 {[%clk 0:00:25]}  Kf5 {[%clk 0:00:30]} 88. Be3 {[%clk 0:00:24]}  Ke6 {[%clk 0:00:30]} 89. Bf2 {[%clk 0:00:24]}  Bc7 {[%clk 0:00:31]} 90. Be1 {[%clk 0:00:24]}  Bf4 {[%clk 0:00:31]} 91. Bf2 {[%clk 0:00:23]}  Kf5 {[%clk 0:00:31]} 92. Be1 {[%clk 0:00:23]}  Kg4 {[%clk 0:00:31]} 93. Ba5 {[%clk 0:00:23]}  Kf3 {[%clk 0:00:31]} 94. Bb6 {[%clk 0:00:23]}  Bg3 {[%clk 0:00:30]} 95. Ba5 {[%clk 0:00:23]}  Bf4 {[%clk 0:00:31]} 96. Bb6 {[%clk 0:00:23]}  Bh2 {[%clk 0:00:30]} 97. Ba5 {[%clk 0:00:23]}  Bg1 {[%clk 0:00:31]} 98. Bb6 {[%clk 0:00:22]}  Kf2 {[%clk 0:00:30]} 99. Bc7 {[%clk 0:00:22]}  Kf3 {[%clk 0:00:31]} 100. Bd6 {[%clk 0:00:21]}  Bf2 {[%clk 0:00:31]} 101. Be5 {[%clk 0:00:21]}  Bh4 {[%clk 0:00:30]} 102. Bd6 {[%clk 0:00:20]}  Bg3 {[%clk 0:00:29]} 103. Be7 {[%clk 0:00:20]}  Bf4 {[%clk 0:00:29]} 104. Bd8 {[%clk 0:00:20]}  Bg3 {[%clk 0:00:29]} 105. Ba5 {[%clk 0:00:20]}  Bf4 {[%clk 0:00:28]} 1/2-1/2


[Site "https://www.chess.com"]

[Event "Titled Tuesday Blitz May 03 Late 2022"]
[White "Petrovic, Aleksa"]
[Black "Trost, Edvin"]
[WhiteFideId "967629"]
[BlackFideId "1729519"]
[WhiteElo "2198"]
[BlackElo "2160"]
[Result "1-0"]
[Round "07"]
[TimeControl "180+1"]
[Date "2022.05.03"]
[WhiteClock "0:00:35"]
[BlackClock "0:00:35"]

1. d4 {[%clk 0:03:00]}  d5 {[%clk 0:02:56]} 2. c4 {[%clk 0:03:00]}  dxc4 {[%clk 0:02:54]} 3. e3 {[%clk 0:02:59]}  Nf6 {[%clk 0:02:46]} 4. Bxc4 {[%clk 0:02:58]}  e6 {[%clk 0:02:43]} 5. Nf3 {[%clk 0:02:58]}  a6 {[%clk 0:02:43]} 6. O-O {[%clk 0:02:56]}  c5 {[%clk 0:02:42]} 7. dxc5 {[%clk 0:02:54]}  Bxc5 {[%clk 0:02:40]} 8. Qxd8+ {[%clk 0:02:53]}  Kxd8 {[%clk 0:02:41]} 9. Rd1+ {[%clk 0:02:49]}  Ke7 {[%clk 0:02:39]} 10. Be2 {[%clk 0:02:48]}  b5 {[%clk 0:02:39]} 11. Bd2 {[%clk 0:02:47]}  Bb7 {[%clk 0:02:36]} 12. Be1 {[%clk 0:02:46]}  Nbd7 {[%clk 0:02:31]} 13. Nfd2 {[%clk 0:02:43]}  Rac8 {[%clk 0:02:24]} 14. Nb3 {[%clk 0:02:43]}  Bd6 {[%clk 0:02:16]} 15. a4 {[%clk 0:02:22]}  bxa4 {[%clk 0:02:10]} 16. Na5 {[%clk 0:02:14]}  Bd5 {[%clk 0:02:03]} 17. Nc3 {[%clk 0:02:12]}  Bb4 {[%clk 0:01:50]} 18. Nxd5+ {[%clk 0:02:08]}  Nxd5 {[%clk 0:01:51]} 19. Rxd5 {[%clk 0:02:04]}  Bxe1 {[%clk 0:01:45]} 20. Rxd7+ {[%clk 0:02:04]}  Kxd7 {[%clk 0:01:45]} 21. Rxe1 {[%clk 0:02:04]}  Rc2 {[%clk 0:01:45]} 22. Nc4 {[%clk 0:02:01]}  Ke7 {[%clk 0:01:41]} 23. Bd3 {[%clk 0:02:00]}  Rxc4 {[%clk 0:01:35]} 24. Bxc4 {[%clk 0:01:59]}  Rb8 {[%clk 0:01:36]} 25. Ra1 {[%clk 0:01:48]}  Rxb2 {[%clk 0:01:34]} 26. g3 {[%clk 0:01:45]}  Rb4 {[%clk 0:01:31]} 27. Bxa6 {[%clk 0:01:44]}  Kd6 {[%clk 0:01:31]} 28. Kg2 {[%clk 0:01:38]}  Kc5 {[%clk 0:01:32]} 29. Kf3 {[%clk 0:01:37]}  Kb6 {[%clk 0:01:27]} 30. Bc8 {[%clk 0:01:35]}  Rc4 {[%clk 0:01:17]} 31. Bd7 {[%clk 0:01:30]}  Ka5 {[%clk 0:01:18]} 32. e4 {[%clk 0:01:23]}  e5 {[%clk 0:01:16]} 33. Kg4 {[%clk 0:01:14]}  Rxe4+ {[%clk 0:01:15]} 34. Kf5 {[%clk 0:01:14]}  Rd4 {[%clk 0:01:15]} 35. Rxa4+ {[%clk 0:01:10]}  Rxa4 {[%clk 0:01:15]} 36. Bxa4 {[%clk 0:01:09]}  Kxa4 {[%clk 0:01:16]} 37. Kxe5 {[%clk 0:01:09]}  Kb5 {[%clk 0:00:56]} 38. Kd6 {[%clk 0:01:10]}  f5 {[%clk 0:00:57]} 39. Ke5 {[%clk 0:01:01]}  g6 {[%clk 0:00:47]} 40. Kf6 {[%clk 0:01:01]}  Kc4 {[%clk 0:00:44]} 41. Kg7 {[%clk 0:01:00]}  g5 {[%clk 0:00:40]} 42. Kxh7 {[%clk 0:01:00]}  Kd3 {[%clk 0:00:37]} 43. Kg6 {[%clk 0:00:59]}  f4 {[%clk 0:00:36]} 44. gxf4 {[%clk 0:00:42]}  gxf4 {[%clk 0:00:36]} 45. Kf5 {[%clk 0:00:39]}  f3 {[%clk 0:00:30]} 46. Kf4 {[%clk 0:00:39]}  Kd4 {[%clk 0:00:26]} 47. Kxf3 {[%clk 0:00:39]}  Ke5 {[%clk 0:00:27]} 48. Kg4 {[%clk 0:00:37]}  Kf6 {[%clk 0:00:26]} 49. h4 {[%clk 0:00:37]}  Kg6 {[%clk 0:00:27]} 50. h5+ {[%clk 0:00:37]}  Kh6 {[%clk 0:00:28]} 51. f4 {[%clk 0:00:37]}  Kg7 {[%clk 0:00:29]} 52. Kg5 {[%clk 0:00:37]}  Kf7 {[%clk 0:00:30]} 53. h6 {[%clk 0:00:38]}  Kg8 {[%clk 0:00:30]} 54. Kg6 {[%clk 0:00:36]}  Kh8 {[%clk 0:00:30]} 55. f5 {[%clk 0:00:37]}  Kg8 {[%clk 0:00:31]} 56. f6 {[%clk 0:00:36]}  Kh8 {[%clk 0:00:31]} 57. Kf7 {[%clk 0:00:36]}  Kh7 {[%clk 0:00:32]} 58. Ke8 {[%clk 0:00:36]}  Kh8 {[%clk 0:00:29]} 59. f7 {[%clk 0:00:36]}  Kh7 {[%clk 0:00:30]} 60. f8=R {[%clk 0:00:36]}  Kg6 {[%clk 0:00:31]} 61. h7 {[%clk 0:00:35]}  Kxh7 {[%clk 0:00:31]} 62. Kf7 {[%clk 0:00:33]}  Kh6 {[%clk 0:00:31]} 63. Rg8 {[%clk 0:00:34]}  Kh7 {[%clk 0:00:31]} 64. Rg1 {[%clk 0:00:33]}  Kh6 {[%clk 0:00:32]} 65. Rg2 {[%clk 0:00:32]}  Kh5 {[%clk 0:00:32]} 66. Kf6 {[%clk 0:00:32]}  Kh4 {[%clk 0:00:33]} 67. Kf5 {[%clk 0:00:32]}  Kh3 {[%clk 0:00:34]} 68. Rg4 {[%clk 0:00:33]}  Kh2 {[%clk 0:00:34]} 69. Kf4 {[%clk 0:00:34]}  Kh3 {[%clk 0:00:35]} 70. Kf3 {[%clk 0:00:34]}  Kh2 {[%clk 0:00:35]} 71. Rg3 {[%clk 0:00:34]}  Kh1 {[%clk 0:00:35]} 72. Rh3+ {[%clk 0:00:34]}  Kg1 {[%clk 0:00:35]} 73. Rh8 {[%clk 0:00:35]}  Kf1 {[%clk 0:00:35]} 74. Rh1# {[%clk 0:00:35]} 1-0


[Site "https://www.chess.com"]

[Event "Titled Tuesday Blitz May 03 Late 2022"]
[White "Pinheiro, Iung Alicio de O."]
[Black "Vlassov, Nikolai"]
[WhiteFideId "2104350"]
[BlackFideId "4103360"]
[WhiteElo "2525"]
[BlackElo "2407"]
[Result "0-1"]
[Round "07"]
[TimeControl "180+1"]
[Date "2022.05.03"]
[WhiteClock "0:00:19"]
[BlackClock "0:00:22"]

1. c4 {[%clk 0:02:59]}  e5 {[%clk 0:02:59]} 2. g3 {[%clk 0:02:59]}  h5 {[%clk 0:02:57]} 3. Nc3 {[%clk 0:02:57]}  h4 {[%clk 0:02:57]} 4. g4 {[%clk 0:02:58]}  Nc6 {[%clk 0:02:56]} 5. h3 {[%clk 0:02:55]}  a5 {[%clk 0:02:47]} 6. Bg2 {[%clk 0:02:55]}  Bc5 {[%clk 0:02:47]} 7. e3 {[%clk 0:02:54]}  d6 {[%clk 0:02:47]} 8. Qc2 {[%clk 0:02:46]}  Nge7 {[%clk 0:02:45]} 9. Be4 {[%clk 0:02:41]}  g6 {[%clk 0:02:38]} 10. g5 {[%clk 0:02:36]}  Nf5 {[%clk 0:02:22]} 11. Nf3 {[%clk 0:02:34]}  Ng7 {[%clk 0:02:21]} 12. Nd5 {[%clk 0:02:26]}  Nb4 {[%clk 0:02:10]} 13. Qb1 {[%clk 0:02:21]}  Nxd5 {[%clk 0:02:04]} 14. cxd5 {[%clk 0:02:17]}  Bf5 {[%clk 0:01:46]} 15. b3 {[%clk 0:02:08]}  Qd7 {[%clk 0:01:46]} 16. Bb2 {[%clk 0:02:07]}  Bxh3 {[%clk 0:01:41]} 17. Bxe5 {[%clk 0:01:34]}  dxe5 {[%clk 0:01:35]} 18. Nxe5 {[%clk 0:01:35]}  Qe7 {[%clk 0:01:07]} 19. d4 {[%clk 0:00:35]}  Bb4+ {[%clk 0:01:04]} 20. Ke2 {[%clk 0:00:36]}  Bf5 {[%clk 0:01:02]} 21. Qc2 {[%clk 0:00:31]}  Qxg5 {[%clk 0:00:53]} 22. Rag1 {[%clk 0:00:26]}  Bxe4 {[%clk 0:00:44]} 23. Qxe4 {[%clk 0:00:26]}  Qf5 {[%clk 0:00:44]} 24. Qg2 {[%clk 0:00:19]}  Qc2+ {[%clk 0:00:41]} 25. Kf3 {[%clk 0:00:19]}  Ra6 {[%clk 0:00:24]} 26. Rc1 {[%clk 0:00:19]}  Rf6+ {[%clk 0:00:22]} 0-1


[Site "https://www.chess.com"]

[Event "Titled Tuesday Blitz May 03 Late 2022"]
[White "Rasulov, Vugar"]
[Black "Martinez Alcantara, Jose Eduardo"]
[WhiteFideId "13402390"]
[BlackFideId "3805662"]
[WhiteElo "2560"]
[BlackElo "2690"]
[Result "1/2-1/2"]
[Round "07"]
[TimeControl "180+1"]
[Date "2022.05.03"]
[WhiteClock "0:00:25"]
[BlackClock "0:00:15"]

1. d4 {[%clk 0:03:00]}  Nf6 {[%clk 0:03:00]} 2. c4 {[%clk 0:03:01]}  e6 {[%clk 0:03:00]} 3. Nf3 {[%clk 0:03:01]}  Bb4+ {[%clk 0:03:01]} 4. Bd2 {[%clk 0:03:00]}  Qe7 {[%clk 0:03:01]} 5. Nc3 {[%clk 0:02:58]}  b6 {[%clk 0:03:00]} 6. g3 {[%clk 0:02:58]}  Bxc3 {[%clk 0:02:55]} 7. Bxc3 {[%clk 0:02:58]}  Ne4 {[%clk 0:02:55]} 8. Qc2 {[%clk 0:02:55]}  Bb7 {[%clk 0:02:53]} 9. Bg2 {[%clk 0:02:55]}  Nxc3 {[%clk 0:02:53]} 10. Qxc3 {[%clk 0:02:55]}  O-O {[%clk 0:02:51]} 11. O-O {[%clk 0:02:56]}  d6 {[%clk 0:02:51]} 12. b4 {[%clk 0:02:53]}  Nd7 {[%clk 0:02:51]} 13. Rfc1 {[%clk 0:02:50]}  Nf6 {[%clk 0:02:51]} 14. Qc2 {[%clk 0:02:44]}  Be4 {[%clk 0:02:50]} 15. Qb2 {[%clk 0:02:40]}  c5 {[%clk 0:02:32]} 16. dxc5 {[%clk 0:02:33]}  dxc5 {[%clk 0:02:33]} 17. b5 {[%clk 0:02:33]}  Qb7 {[%clk 0:02:33]} 18. Ne1 {[%clk 0:02:25]}  Bxg2 {[%clk 0:02:29]} 19. Nxg2 {[%clk 0:02:26]}  Rad8 {[%clk 0:02:29]} 20. Rd1 {[%clk 0:02:22]}  Qe4 {[%clk 0:02:28]} 21. Ne3 {[%clk 0:02:22]}  Rd4 {[%clk 0:02:21]} 22. Rd2 {[%clk 0:02:00]}  Rfd8 {[%clk 0:02:18]} 23. Rad1 {[%clk 0:02:00]}  h5 {[%clk 0:02:16]} 24. h4 {[%clk 0:01:56]}  R8d7 {[%clk 0:01:45]} 25. a4 {[%clk 0:01:54]}  e5 {[%clk 0:01:30]} 26. a5 {[%clk 0:01:41]}  bxa5 {[%clk 0:01:23]} 27. Qc3 {[%clk 0:01:37]}  a4 {[%clk 0:01:22]} 28. Qa5 {[%clk 0:01:26]}  Kh7 {[%clk 0:01:16]} 29. Rd3 {[%clk 0:01:15]}  Rxd3 {[%clk 0:01:01]} 30. Rxd3 {[%clk 0:01:16]}  Rxd3 {[%clk 0:01:00]} 31. exd3 {[%clk 0:01:17]}  Qxd3 {[%clk 0:01:01]} 32. Qxa4 {[%clk 0:01:17]}  Qd7 {[%clk 0:00:42]} 33. Kg2 {[%clk 0:01:08]}  Ng4 {[%clk 0:00:29]} 34. Qc2+ {[%clk 0:01:01]}  g6 {[%clk 0:00:28]} 35. Nd5 {[%clk 0:00:58]}  Kg7 {[%clk 0:00:28]} 36. Qe2 {[%clk 0:00:58]}  Qd6 {[%clk 0:00:26]} 37. Qa2 {[%clk 0:00:50]}  Qd7 {[%clk 0:00:27]} 38. Qa1 {[%clk 0:00:49]}  Qf5 {[%clk 0:00:26]} 39. Qa2 {[%clk 0:00:36]}  Qd3 {[%clk 0:00:20]} 40. f3 {[%clk 0:00:27]}  Ne3+ {[%clk 0:00:18]} 41. Nxe3 {[%clk 0:00:26]}  Qxe3 {[%clk 0:00:19]} 42. Qxa7 {[%clk 0:00:23]}  Qe2+ {[%clk 0:00:19]} 43. Kg1 {[%clk 0:00:24]}  Qd1+ {[%clk 0:00:18]} 44. Kg2 {[%clk 0:00:23]}  Qe2+ {[%clk 0:00:19]} 45. Kg1 {[%clk 0:00:23]}  Qxc4 {[%clk 0:00:19]} 46. b6 {[%clk 0:00:23]}  Qc1+ {[%clk 0:00:18]} 47. Kf2 {[%clk 0:00:23]}  Qd2+ {[%clk 0:00:19]} 48. Kf1 {[%clk 0:00:24]}  Qd1+ {[%clk 0:00:19]} 49. Kf2 {[%clk 0:00:24]}  Qd2+ {[%clk 0:00:20]} 50. Kf1 {[%clk 0:00:25]}  Qd1+ {[%clk 0:00:14]} 51. Kf2 {[%clk 0:00:25]}  Qd2+ {[%clk 0:00:15]} 1/2-1/2


[Site "https://www.chess.com"]

[Event "Titled Tuesday Blitz May 03 Late 2022"]
[White "Remizov, Yaroslav"]
[Black "Lehtosaari, Mauri"]
[WhiteFideId "34134015"]
[BlackFideId "501999"]
[WhiteElo "2386"]
[BlackElo "2514"]
[Result "0-1"]
[Round "07"]
[TimeControl "180+1"]
[Date "2022.05.03"]
[WhiteClock "0:01:46"]
[BlackClock "0:00:10"]

1. Nc3 {[%clk 0:02:59]}  d5 {[%clk 0:02:58]} 2. e4 {[%clk 0:03:00]}  d4 {[%clk 0:02:51]} 3. Nce2 {[%clk 0:03:00]}  Nf6 {[%clk 0:02:49]} 4. d3 {[%clk 0:03:00]}  c5 {[%clk 0:02:44]} 5. g3 {[%clk 0:03:00]}  Nc6 {[%clk 0:02:44]} 6. Bg2 {[%clk 0:03:01]}  g6 {[%clk 0:02:42]} 7. f4 {[%clk 0:03:01]}  Bg7 {[%clk 0:02:42]} 8. Nf3 {[%clk 0:03:00]}  O-O {[%clk 0:02:39]} 9. O-O {[%clk 0:03:00]}  b6 {[%clk 0:02:38]} 10. h3 {[%clk 0:03:00]}  Bb7 {[%clk 0:02:38]} 11. g4 {[%clk 0:03:00]}  h6 {[%clk 0:02:34]} 12. Ng3 {[%clk 0:02:59]}  Qc7 {[%clk 0:02:23]} 13. Qe1 {[%clk 0:02:58]}  Nh7 {[%clk 0:02:19]} 14. f5 {[%clk 0:02:57]}  Ne5 {[%clk 0:02:10]} 15. Bf4 {[%clk 0:02:52]}  Nxf3+ {[%clk 0:02:01]} 16. Rxf3 {[%clk 0:02:52]}  Be5 {[%clk 0:02:01]} 17. Bxh6 {[%clk 0:02:51]}  b5 {[%clk 0:01:14]} 18. h4 {[%clk 0:02:44]}  Rfe8 {[%clk 0:01:11]} 19. g5 {[%clk 0:02:39]}  c4 {[%clk 0:01:06]} 20. h5 {[%clk 0:02:32]}  gxh5 {[%clk 0:00:59]} 21. Nxh5 {[%clk 0:02:31]}  cxd3 {[%clk 0:00:57]} 22. cxd3 {[%clk 0:02:31]}  Rac8 {[%clk 0:00:56]} 23. Qh4 {[%clk 0:02:29]}  Qc2 {[%clk 0:00:26]} 24. Raf1 {[%clk 0:02:28]}  Qd2 {[%clk 0:00:20]} 25. g6 {[%clk 0:02:18]}  Qxh6 {[%clk 0:00:19]} 26. Nf6+ {[%clk 0:02:18]}  Kg7 {[%clk 0:00:19]} 27. Qxh6+ {[%clk 0:02:15]}  Kxh6 {[%clk 0:00:19]} 28. Rh3+ {[%clk 0:02:15]}  Kg7 {[%clk 0:00:18]} 29. Rxh7+ {[%clk 0:02:15]}  Kxf6 {[%clk 0:00:19]} 30. Rxf7+ {[%clk 0:02:09]}  Kg5 {[%clk 0:00:19]} 31. f6 {[%clk 0:02:09]}  exf6 {[%clk 0:00:17]} 32. Rxb7 {[%clk 0:02:08]}  Kxg6 {[%clk 0:00:17]} 33. Bh3 {[%clk 0:02:01]}  Rc2 {[%clk 0:00:14]} 34. Bf5+ {[%clk 0:02:02]}  Kh6 {[%clk 0:00:12]} 35. Rh7+ {[%clk 0:02:00]}  Kg5 {[%clk 0:00:13]} 36. Rf3 {[%clk 0:01:57]}  Rc1+ {[%clk 0:00:10]} 37. Kg2 {[%clk 0:01:55]}  Rc2+ {[%clk 0:00:10]} 38. Kh3 {[%clk 0:01:46]}  Rh2# {[%clk 0:00:10]} 0-1


[Site "https://www.chess.com"]

[Event "Titled Tuesday Blitz May 03 Late 2022"]
[White "Remolar Gallen, Jose"]
[Black "Burke, Paul"]
[WhiteFideId "2215187"]
[BlackFideId "2605767"]
[WhiteElo "2205"]
[BlackElo "1860"]
[Result "1-0"]
[Round "07"]
[TimeControl "180+1"]
[Date "2022.05.03"]
[WhiteClock "0:01:50"]
[BlackClock "0:00:49"]

1. e4 {[%clk 0:03:00]}  e5 {[%clk 0:02:59]} 2. f4 {[%clk 0:03:00]}  Bc5 {[%clk 0:02:56]} 3. Nf3 {[%clk 0:02:57]}  d6 {[%clk 0:02:56]} 4. Bc4 {[%clk 0:02:50]}  Nc6 {[%clk 0:02:56]} 5. c3 {[%clk 0:02:36]}  Nf6 {[%clk 0:02:51]} 6. d3 {[%clk 0:02:20]}  O-O {[%clk 0:02:50]} 7. Nbd2 {[%clk 0:02:17]}  Bg4 {[%clk 0:02:16]} 8. h3 {[%clk 0:02:15]}  Bxf3 {[%clk 0:02:15]} 9. Nxf3 {[%clk 0:02:14]}  exf4 {[%clk 0:02:07]} 10. Bxf4 {[%clk 0:02:12]}  Ne5 {[%clk 0:02:01]} 11. Bb3 {[%clk 0:02:01]}  Nxf3+ {[%clk 0:01:51]} 12. Qxf3 {[%clk 0:02:00]}  Nd7 {[%clk 0:01:49]} 13. d4 {[%clk 0:02:00]}  Bb6 {[%clk 0:01:49]} 14. O-O {[%clk 0:02:00]}  c5 {[%clk 0:01:48]} 15. Bxd6 {[%clk 0:01:59]}  cxd4 {[%clk 0:01:38]} 16. Bxf8 {[%clk 0:01:58]}  dxc3+ {[%clk 0:01:32]} 17. Kh1 {[%clk 0:01:55]}  Qxf8 {[%clk 0:01:29]} 18. Qxf7+ {[%clk 0:01:54]}  Qxf7 {[%clk 0:01:25]} 19. Rxf7 {[%clk 0:01:54]}  Nc5 {[%clk 0:01:21]} 20. Bd5 {[%clk 0:01:51]}  cxb2 {[%clk 0:01:01]} 21. Raf1 {[%clk 0:01:51]}  h6 {[%clk 0:00:54]} 22. Rf8+ {[%clk 0:01:50]}  Kh7 {[%clk 0:00:49]} 23. Rxa8 {[%clk 0:01:50]} 1-0


[Site "https://www.chess.com"]

[Event "Titled Tuesday Blitz May 03 Late 2022"]
[White "Rosen, Eric"]
[Black "Demchenko, Anton"]
[WhiteFideId "2032562"]
[BlackFideId "4160258"]
[WhiteElo "2362"]
[BlackElo "2539"]
[Result "0-1"]
[Round "07"]
[TimeControl "180+1"]
[Date "2022.05.03"]
[WhiteClock "0:00:04"]
[BlackClock "0:00:09"]

1. d4 {[%clk 0:03:00]}  Nf6 {[%clk 0:02:59]} 2. Bf4 {[%clk 0:03:00]}  g6 {[%clk 0:02:57]} 3. Nc3 {[%clk 0:03:00]}  d5 {[%clk 0:02:57]} 4. e3 {[%clk 0:03:01]}  c6 {[%clk 0:02:58]} 5. h4 {[%clk 0:03:01]}  Qb6 {[%clk 0:02:50]} 6. Rb1 {[%clk 0:02:58]}  h5 {[%clk 0:02:42]} 7. Nf3 {[%clk 0:02:58]}  Bg4 {[%clk 0:02:41]} 8. Qd2 {[%clk 0:02:58]}  Bxf3 {[%clk 0:02:39]} 9. gxf3 {[%clk 0:02:58]}  Nbd7 {[%clk 0:02:35]} 10. e4 {[%clk 0:02:46]}  e6 {[%clk 0:02:35]} 11. a3 {[%clk 0:02:39]}  Ng8 {[%clk 0:02:32]} 12. Qe3 {[%clk 0:02:26]}  O-O-O {[%clk 0:01:30]} 13. exd5 {[%clk 0:02:03]}  exd5 {[%clk 0:01:21]} 14. Nxd5 {[%clk 0:02:03]}  Qa5+ {[%clk 0:01:11]} 15. Nc3 {[%clk 0:01:48]}  Bh6 {[%clk 0:00:53]} 16. b4 {[%clk 0:00:50]}  Qf5 {[%clk 0:00:26]} 17. Bxh6 {[%clk 0:00:29]}  Nxh6 {[%clk 0:00:27]} 18. Ne4 {[%clk 0:00:30]}  Qe6 {[%clk 0:00:23]} 19. b5 {[%clk 0:00:28]}  Nf5 {[%clk 0:00:19]} 20. Qc3 {[%clk 0:00:21]}  Nf6 {[%clk 0:00:17]} 21. bxc6 {[%clk 0:00:20]}  Nxe4 {[%clk 0:00:18]} 22. cxb7+ {[%clk 0:00:15]}  Kb8 {[%clk 0:00:18]} 23. fxe4 {[%clk 0:00:16]}  Qxe4+ {[%clk 0:00:18]} 24. Be2 {[%clk 0:00:16]}  Qxh1+ {[%clk 0:00:17]} 25. Bf1 {[%clk 0:00:09]}  Rhe8+ {[%clk 0:00:16]} 26. Kd2 {[%clk 0:00:10]}  Rxd4+ {[%clk 0:00:15]} 27. Kc1 {[%clk 0:00:01]}  Qxf1+ {[%clk 0:00:15]} 28. Kb2 {[%clk 0:00:02]}  Qb5+ {[%clk 0:00:14]} 29. Ka1 {[%clk 0:00:02]}  Qd7 {[%clk 0:00:11]} 30. f4 {[%clk 0:00:01]}  Rd1 {[%clk 0:00:10]} 31. a4 {[%clk 0:00:02]}  Rxb1+ {[%clk 0:00:09]} 32. Kxb1 {[%clk 0:00:03]}  Qxb7+ {[%clk 0:00:10]} 33. Ka2 {[%clk 0:00:02]}  Rc8 {[%clk 0:00:10]} 34. Qe5+ {[%clk 0:00:02]}  Ka8 {[%clk 0:00:10]} 35. c4 {[%clk 0:00:03]}  Qc6 {[%clk 0:00:10]} 36. a5 {[%clk 0:00:03]}  Qxc4+ {[%clk 0:00:10]} 37. Kb2 {[%clk 0:00:03]}  Qb4+ {[%clk 0:00:09]} 38. Ka2 {[%clk 0:00:02]}  Rc2+ {[%clk 0:00:09]} 39. Ka1 {[%clk 0:00:03]}  Qa4+ {[%clk 0:00:09]} 40. Kb1 {[%clk 0:00:04]}  Qa2# {[%clk 0:00:09]} 0-1


[Site "https://www.chess.com"]